bitfinex/quotes_ETHUSD_20250804
["timestamp","ask_amount","ask_price","bid_price","bid_amount"]
[1754346404337,7.50608959,3727.4,3727.3,1e-08]
[1754346404687,6.92308959,3727.4,3727.3,1e-08]
[1754346405220,7.50608959,3727.4,3727.3,1e-08]
[1754346405629,11.64808959,3727.4,3727.3,1e-08]
[1754346408210,11.64812117,3727.4,3727.3,1e-08]
[1754346408415,41.64812117,3727.4,3727.3,1e-08]
[1754346411406,43.26112117,3727.4,3727.3,1e-08]
[1754346411926,37.40712117,3727.4,3727.3,1e-08]
[1754346412099,41.06512117,3727.4,3727.3,1e-08]
[1754346413100,11.06512117,3727.4,3727.3,1e-08]
[1754346414999,11.53232117,3727.4,3727.3,1e-08]
[1754346415225,11.96962117,3727.4,3727.3,1e-08]
[1754346416032,11.53232117,3727.4,3727.3,1e-08]
[1754346416237,11.06512117,3727.4,3727.3,1e-08]
[1754346416436,11.53232117,3727.4,3727.3,1e-08]
[1754346416937,11.96962117,3727.4,3727.3,1e-08]
[1754346417094,11.53232117,3727.4,3727.3,1e-08]
[1754346417315,41.96962117,3727.4,3727.3,1e-08]
[1754346418517,41.06512117,3727.4,3727.3,1e-08]
[1754346419120,41.53232117,3727.4,3727.3,1e-08]
[1754346419553,41.96962117,3727.4,3727.3,1e-08]
[1754346421361,13.58262117,3727.4,3727.3,1e-08]
[1754346421724,43.58262117,3727.4,3727.3,1e-08]
[1754346423266,43.14532117,3727.4,3727.3,1e-08]
[1754346423430,41.06512117,3727.4,3727.3,1e-08]
[1754346424561,41.06512117,3727.4,3727.3,0.45280001]
[1754346424736,41.06512117,3727.4,3727.3,0.91500001]
[1754346425639,11.06512117,3727.4,3727.3,0.91500001]
[1754346426849,10.81413107,3727.4,3727.3,0.91500001]
[1754346427037,11.06502825,3727.4,3727.3,0.91500001]
[1754346427229,17.51002825,3727.4,3727.3,1e-08]
[1754346427428,47.51002825,3727.4,3727.3,1e-08]
[1754346427765,47.51002825,3727.4,3727.3,0.91500001]
[1754346427766,13.36802825,3727.4,3727.3,0.91500001]
[1754346427924,17.51002825,3727.4,3727.3,0.91500001]
[1754346428542,17.51002825,3727.4,3727.3,1e-08]
[1754346429931,17.51002825,3727.4,3727.3,0.91500001]
[1754346430131,17.51029066,3727.4,3727.3,0.91500001]
[1754346430968,17.50929066,3727.4,3727.3,0.91500001]
[1754346431462,16.51999481,3727.4,3727.3,0.91500001]
[1754346432368,17.06999481,3727.4,3727.3,1e-08]
[1754346432737,47.06999481,3727.4,3727.3,1e-08]
[1754346433145,47.53746665,3727.4,3727.3,1e-08]
[1754346433646,47.97476665,3727.4,3727.3,1e-08]
[1754346433994,50.26812851,3727.4,3727.3,1e-08]
[1754346434142,50.70542851,3727.4,3727.3,1e-08]
[1754346435175,20.70542851,3727.4,3727.3,1e-08]
[1754346435666,50.70542851,3727.4,3727.3,1e-08]
[1754346438375,50.70542851,3727.4,3726.6,0.4543]
[1754346438376,0.55,3726.9,3726.5,1e-08]
[1754346438580,17.64641603,3726.6,3726.5,1e-08]
[1754346438779,51.58692861,3726.6,3726.5,1e-08]
[1754346439075,51.58692861,3726.6,3725.6,0.4543]
[1754346439076,6.23384326,3726.0,3725.6,0.4543]
[1754346439278,50.86611497,3726.0,3725.6,0.4543]
[1754346440364,50.86611497,3726.0,3724.5,2.68491424]
[1754346440551,50.86611497,3726.0,3723.2,2.88765825]
[1754346440552,3.23413141,3725.6,3725.2,0.4543]
[1754346440754,44.07256284,3725.6,3724.0,2.68523526]
[1754346440954,44.27141831,3725.6,3723.8,2.68542262]
[1754346441307,44.72621831,3725.6,3724.8,0.4543]
[1754346441455,45.21449178,3725.6,3725.1,0.001]
[1754346442401,47.75969178,3725.6,3725.3,0.4543]
[1754346442707,47.75969178,3725.6,3725.5,0.9174]
[1754346443006,13.83843143,3725.6,3725.5,0.9174]
[1754346444108,6.69743143,3725.6,3725.5,0.9174]
[1754346444308,10.83843143,3725.6,3725.5,3.60160346]
[1754346445321,6.446,3725.6,3725.5,3.60160346]
[1754346445532,6.5796,3725.6,3725.5,3.60160346]
[1754346445845,6.5796,3725.6,3725.5,4.49862156]
[1754346445846,10.7206,3725.6,3725.5,4.49862156]
[1754346446809,6.5796,3725.6,3725.5,4.49862156]
[1754346447027,2.68331323,3726.8,3726.1,2.68370819]
[1754346447228,3.0,3726.6,3726.2,3.60008731]
[1754346447460,9.12914161,3727.0,3726.4,2.68355517]
[1754346447461,0.25056865,3726.5,3726.4,2.68355517]
[1754346447766,4.39156865,3726.5,3726.4,3.59995517]
[1754346448341,4.39156865,3726.5,3726.4,0.9164]
[1754346449266,4.39156865,3726.5,3726.1,0.4543]
[1754346449428,0.68972552,3726.4,3726.1,0.4543]
[1754346449630,4.141,3726.3,3726.1,0.4621]
[1754346449828,4.141,3726.3,3726.2,0.9164]
[1754346450069,4.39158939,3726.3,3726.2,0.9164]
[1754346450418,4.141,3726.3,3726.2,3.60009921]
[1754346450670,4.141,3726.3,3726.2,0.9164]
[1754346451017,4.141,3726.3,3726.2,3.60009921]
[1754346452054,4.141,3726.3,3726.2,0.9164]
[1754346452521,4.39160748,3726.3,3726.2,0.9164]
[1754346452924,4.141,3726.3,3726.2,0.9164]
[1754346453768,4.141,3726.3,3726.2,0.4543]
[1754346453769,4.14,3726.3,3726.2,0.4543]
[1754346454264,2.6835403,3726.5,3726.2,0.9164]
[1754346454421,4.39061211,3726.4,3726.0,0.4543]
[1754346454758,4.39061241,3726.3,3726.0,0.4543]
[1754346455059,0.25061241,3726.2,3726.1,0.001]
[1754346455256,2.93431694,3726.2,3726.1,0.001]
[1754346455557,3.48431694,3726.2,3726.1,0.001]
[1754346456441,3.51786318,3726.2,3726.1,0.001]
[1754346456740,4.64139127,3726.2,3726.1,0.001]
[1754346456950,4.60784503,3726.2,3726.1,0.001]
[1754346459967,7.60784503,3726.2,3726.1,0.001]
[1754346460374,38.06264503,3726.2,3726.1,0.001]
[1754346460667,38.53464503,3726.2,3726.1,0.001]
[1754346460884,37.60784503,3726.2,3726.1,0.001]
[1754346461085,7.60784503,3726.2,3726.1,0.001]
[1754346461267,11.74784503,3726.2,3726.1,0.001]
[1754346461674,11.74784503,3726.2,3726.1,0.4553]
[1754346461867,11.74784503,3726.2,3726.1,0.001]
[1754346462263,42.67464503,3726.2,3726.1,0.001]
[1754346462505,41.74784503,3726.2,3726.1,0.001]
[1754346462776,44.28764503,3726.2,3726.1,0.001]
[1754346463178,14.28764503,3726.2,3726.1,0.001]
[1754346463590,44.28764503,3726.2,3726.1,0.001]
[1754346465658,44.03703262,3726.2,3726.1,0.001]
[1754346465865,44.28784069,3726.2,3726.1,0.001]
[1754346466302,44.28784345,3726.2,3726.1,0.001]
[1754346466716,43.36104345,3726.2,3726.1,0.001]
[1754346467223,39.22104345,3726.2,3726.1,0.001]
[1754346467535,43.36104345,3726.2,3726.1,0.001]
[1754346468529,43.36106767,3726.2,3726.1,0.001]
[1754346470828,52.7095168,3726.2,3726.1,0.001]
[1754346471433,51.0965168,3726.2,3726.1,0.001]
[1754346472128,51.0965168,3726.2,3726.1,0.9623]
[1754346472631,46.9565168,3726.2,3726.1,0.9623]
[1754346472839,51.0965168,3726.2,3726.1,0.9623]
[1754346473033,51.22803139,3726.2,3726.1,0.9623]
[1754346473533,51.22803139,3726.2,3726.1,0.001]
[1754346474167,51.68113139,3726.2,3726.1,0.001]
[1754346474330,51.22803139,3726.2,3726.1,0.001]
[1754346474532,51.22803139,3726.2,3726.1,0.4925]
[1754346474734,51.22803139,3726.2,3726.1,0.9623]
[1754346474934,57.67503139,3726.2,3726.1,0.9623]
[1754346476757,57.67703139,3726.2,3726.1,0.9623]
[1754346477563,27.67703139,3726.2,3726.1,0.4925]
[1754346478071,57.67703139,3726.2,3726.1,0.4925]
[1754346478755,18.32858226,3726.2,3726.1,0.4925]
[1754346478958,17.20505417,3726.2,3726.1,0.9623]
[1754346479778,13.06505417,3726.2,3726.1,0.9623]
[1754346479982,17.20405417,3726.2,3726.1,0.9623]
[1754346480188,13.06505417,3726.2,3726.1,0.9623]
[1754346480399,17.20405417,3726.2,3726.1,0.9623]
[1754346481083,9.38353426,3726.2,3726.1,0.9623]
[1754346481396,13.52253426,3726.2,3726.1,0.9623]
[1754346481596,10.83883505,3726.2,3726.1,0.9623]
[1754346481953,13.52253426,3726.2,3726.1,0.9623]
[1754346482590,10.83883505,3726.2,3726.1,0.9623]
[1754346483682,13.52253426,3726.2,3726.1,0.9623]
[1754346484451,10.83883505,3726.2,3726.1,0.9623]
[1754346487554,13.52253426,3726.2,3726.1,0.4925]
[1754346488003,13.52253426,3726.2,3726.1,0.001]
[1754346488773,10.83883505,3726.2,3726.1,0.001]
[1754346488956,13.52253426,3726.2,3726.1,0.001]
[1754346489157,13.52253426,3726.2,3726.1,0.4925]
[1754346489489,13.52253426,3726.2,3726.1,0.001]
[1754346489788,25.21217649,3726.2,3726.1,0.001]
[1754346489992,28.66527649,3726.2,3726.1,0.001]
[1754346491784,28.41444144,3726.2,3726.1,0.001]
[1754346492081,28.66563048,3726.2,3726.1,0.001]
[1754346492491,18.86408135,3726.2,3726.1,0.001]
[1754346492711,18.86408396,3726.2,3726.1,0.4925]
[1754346493195,18.86406767,3726.2,3726.1,0.9623]
[1754346493902,18.31406767,3726.2,3726.1,0.9623]
[1754346494307,18.31406767,3726.2,3726.1,0.4925]
[1754346494808,18.31406767,3726.2,3726.1,0.001]
[1754346497397,18.31406767,3726.2,3726.1,0.482]
[1754346497793,18.31406767,3726.2,3726.1,0.001]
[1754346498012,18.31406767,3726.2,3726.1,0.9172]
[1754346498707,18.31406767,3726.2,3726.1,0.001]
[1754346499622,49.34716767,3726.2,3726.1,0.001]
[1754346499789,49.81996767,3726.2,3726.1,0.001]
[1754346500125,48.86406767,3726.2,3726.1,0.001]
[1754346502815,49.34716767,3726.2,3726.1,0.001]
[1754346503203,49.81996767,3726.2,3726.1,0.001]
[1754346506814,19.81996767,3726.2,3726.1,0.001]
[1754346507331,49.81996767,3726.2,3726.1,0.001]
[1754346509413,44.72506767,3726.2,3726.1,0.001]
[1754346509630,0.25317536,3726.2,3726.1,0.9172]
[1754346509827,0.23082817,3726.5,3726.4,2.68355517]
[1754346510139,3.2386,3726.5,3726.4,2.90640488]
[1754346510339,0.002,3727.0,3726.4,3.19714537]
[1754346510502,0.002,3727.0,3726.9,2.68319514]
[1754346510917,4.138,3727.0,3726.9,2.68319514]
[1754346511426,0.002,3727.0,3726.4,0.29074049]
[1754346511730,0.1336,3726.7,3726.5,0.29743]
[1754346512114,4.136,3726.6,3726.5,0.29743]
[1754346512725,4.136,3726.6,3726.5,2.98091316]
[1754346513702,0.1336,3726.7,3726.6,2.68341115]
[1754346513907,4.135,3726.7,3726.6,2.68341115]
[1754346514227,4.135,3726.7,3726.6,3.24984534]
[1754346515123,0.1336,3726.9,3726.6,3.24984534]
[1754346515124,4.2686,3726.9,3726.8,2.68326714]
[1754346515524,4.2686,3726.9,3726.7,2.6833213]
[1754346515829,4.135,3726.9,3726.7,2.6833213]
[1754346516495,4.135,3726.9,3726.6,0.56643419]
[1754346516691,4.135,3726.9,3726.7,0.33835103]
[1754346516900,4.135,3726.9,3726.6,0.56643419]
[1754346517095,0.1336,3726.6,3726.4,2.68354091]
[1754346517298,4.135,3726.5,3726.4,2.68354091]
[1754346518990,4.135,3726.5,3726.2,2.6836835]
[1754346519195,4.135,3726.5,3726.1,2.68476666]
[1754346519402,4.135,3726.5,3726.1,0.001]
[1754346519896,0.1336,3726.4,3726.1,0.001]
[1754346520095,0.1336,3726.4,3726.1,2.6847453]
[1754346520290,0.1336,3726.4,3726.2,0.26857453]
[1754346521406,0.1336,3726.4,3726.2,2.95222579]
[1754346521596,4.135,3726.5,3726.2,0.26857453]
[1754346521992,0.002,3726.9,3726.2,0.26857453]
[1754346522300,4.134,3726.8,3726.7,2.68333914]
[1754346522609,4.134,3726.8,3726.7,2.95167305]
[1754346523212,0.002,3727.1,3727.0,2.68312315]
[1754346523535,0.002,3727.6,3727.1,2.68299289]
[1754346523719,0.002,3727.6,3727.5,2.68276324]
[1754346523925,0.002,3727.6,3727.5,2.7027713]
[1754346524128,0.002,3727.6,3727.5,4.42446812]
[1754346525037,0.002,3727.6,3727.5,2.68276324]
[1754346526224,0.002,3727.6,3727.5,2.7027713]
[1754346527206,0.002,3727.6,3727.5,2.68276324]
[1754346527540,0.002,3727.6,3727.5,2.7027713]
[1754346527836,0.002,3727.6,3727.5,2.68276324]
[1754346528132,0.002,3727.6,3727.5,3.2193293]
[1754346531011,0.002,3727.6,3727.5,3.23933736]
[1754346531515,0.002,3727.6,3727.5,3.2193293]
[1754346532117,0.002,3727.6,3727.5,3.37293736]
[1754346534862,0.002,3727.6,3727.5,3.3529293]
[1754346535915,0.002,3727.6,3727.5,7.4849293]
[1754346538341,0.002,3727.6,3727.5,3.3529293]
[1754346538658,0.484,3727.6,3727.5,3.2193293]
[1754346538822,0.9588,3727.6,3727.5,3.2193293]
[1754346540334,0.002,3727.6,3727.5,3.2193293]
[1754346540662,0.002,3727.6,3727.5,3.23933736]
[1754346541034,1e-08,3727.6,3727.5,6.23933736]
[1754346541347,1e-08,3727.6,3727.5,6.2193293]
[1754346542223,0.002,3728.2,3728.1,2.68233148]
[1754346542422,0.002,3728.2,3728.1,6.81333148]
[1754346542656,0.002,3728.2,3728.1,6.94693148]
[1754346543269,0.484,3728.2,3728.1,6.94693148]
[1754346543424,0.002,3728.2,3728.1,6.94693148]
[1754346543630,0.002,3728.4,3728.3,2.68218759]
[1754346543860,0.002,3728.4,3728.3,2.70218126]
[1754346544164,0.002,3728.4,3728.3,2.83578126]
[1754346544455,1e-08,3728.6,3728.5,2.68204371]
[1754346544664,1e-08,3728.8,3728.7,2.68189985]
[1754346544866,1e-08,3728.8,3728.7,3.76699321]
[1754346545175,0.95680001,3728.8,3728.7,7.89799321]
[1754346545924,0.95680001,3728.8,3728.7,3.76699321]
[1754346547255,0.95680001,3728.8,3728.7,2.81549985]
[1754346547458,0.95680001,3728.8,3728.7,2.68189985]
[1754346554936,0.95680001,3728.8,3728.3,2.68214311]
[1754346555142,0.9568,3728.7,3728.3,2.68212695]
[1754346555344,4.129,3728.6,3728.3,2.68212695]
[1754346555544,0.9568,3728.5,3728.3,2.68212695]
[1754346555873,0.1336,3728.3,3728.2,2.68223424]
[1754346556071,1.0904,3728.3,3728.2,2.68223424]
[1754346559038,1.61234,3728.3,3727.1,0.001]
[1754346559240,0.1336,3727.7,3727.4,2.68277932]
[1754346559434,4.129,3727.8,3727.1,0.001]
[1754346559681,2.68297918,3727.2,3727.1,0.001]
[1754346559841,7.0936371,3727.2,3727.1,0.001]
[1754346560171,2.68311634,3727.1,3726.7,0.001]
[1754346560368,3.63031634,3727.1,3726.7,0.001]
[1754346560670,3.63033451,3727.0,3726.7,0.001]
[1754346560858,2.68320041,3726.9,3726.7,0.001]
[1754346561060,2.68326714,3726.8,3726.7,0.001]
[1754346561275,3.63046714,3726.8,3726.7,0.001]
[1754346562075,7.18046714,3726.8,3726.7,0.001]
[1754346562272,48.58246854,3726.8,3726.7,0.001]
[1754346562473,6.63046714,3726.8,3726.7,0.001]
[1754346562672,7.68269223,3726.8,3726.7,0.001]
[1754346563375,4.99942509,3726.8,3726.7,0.001]
[1754346563574,5.0772,3726.8,3726.7,0.001]
[1754346563778,5.0772,3726.8,3726.7,2.68433914]
[1754346563975,0.13181841,3727.4,3726.8,2.68326542]
[1754346564176,0.4807,3727.1,3726.9,2.6831622]
[1754346564337,0.9472,3727.0,3726.9,2.6831622]
[1754346564769,4.13,3727.1,3727.0,2.68312315]
[1754346564946,3.0,3727.9,3726.8,2.68320073]
[1754346565150,2.68226432,3728.2,3726.8,2.68326714]
[1754346565151,3.0,3727.7,3726.8,2.68326714]
[1754346565547,0.9472,3727.6,3727.1,2.68303081]
[1754346565746,0.4807,3727.6,3726.7,0.001]
[1754346565976,4.13,3727.5,3727.4,2.68283522]
[1754346566179,0.4665,3727.8,3727.7,2.6826193]
[1754346566342,4.5965,3727.8,3727.7,2.6826193]
[1754346566538,5.0772,3727.8,3727.7,2.6826193]
[1754346567073,4.6107,3727.8,3727.7,2.6826193]
[1754346567476,5.0772,3727.8,3727.7,2.6826193]
[1754346568185,4.13,3727.8,3727.7,2.6826193]
[1754346568679,4.6107,3727.8,3727.7,2.6826193]
[1754346569497,4.13,3727.8,3727.7,2.6826193]
[1754346569981,6.9217,3728.5,3728.4,2.68211565]
[1754346570179,11.0517,3728.5,3728.3,2.68216136]
[1754346570483,0.4807,3728.4,3728.3,2.68216136]
[1754346570782,0.9472,3728.4,3728.3,2.68216136]
[1754346572752,0.4807,3728.4,3728.3,2.68216136]
[1754346573576,10.571,3728.5,3728.4,2.68211565]
[1754346573954,11.0517,3728.5,3728.4,2.68211565]
[1754346574181,11.5182,3728.5,3728.4,2.68211565]
[1754346574681,0.1336,3728.4,3728.3,2.68217538]
[1754346574882,1.0808,3728.4,3728.3,2.68217538]
[1754346575296,1.0808,3728.4,3728.2,2.68224366]
[1754346575472,0.9472,3728.3,3728.2,2.68224366]
[1754346576608,0.9472,3728.3,3727.7,0.53653258]
[1754346576809,0.9472,3728.3,3728.0,2.68235409]
[1754346576810,4.6107,3728.2,3728.0,2.68235409]
[1754346577111,0.9472,3728.1,3728.0,2.68235409]
[1754346577707,0.9472,3728.1,3727.8,2.68254734]
[1754346577873,1.0808,3728.0,3727.9,2.68247538]
[1754346578787,1.0808,3728.0,3727.4,0.1336]
[1754346578970,4.6097,3727.9,3727.8,2.68252703]
[1754346579301,5.0762,3727.9,3727.8,2.68252703]
[1754346581190,4.6097,3727.9,3727.8,2.68252703]
[1754346583294,5.0762,3727.9,3727.8,2.68252703]
[1754346583809,5.0762,3727.9,3727.0,0.001]
[1754346584005,0.9472,3727.8,3727.7,2.68261049]
[1754346584313,0.1336,3727.6,3727.0,0.1346]
[1754346584510,0.6001,3727.6,3727.5,2.68269687]
[1754346584809,4.7291,3727.6,3727.5,2.68269687]
[1754346585011,4.7291,3727.6,3727.4,2.68283302]
[1754346585203,0.9472,3727.5,3727.4,2.68283302]
[1754346586001,0.9472,3727.5,3727.3,2.68289711]
[1754346586182,5.0762,3727.4,3727.3,2.68289711]
[1754346588780,5.0762,3727.4,3727.3,2.68290719]
[1754346590519,5.0762,3727.4,3727.2,2.68295344]
[1754346590818,0.8992,3727.3,3727.2,2.68295344]
[1754346592680,0.8992,3727.3,3727.0,0.001]
[1754346592880,5.1618,3727.2,3727.0,0.001]
[1754346593307,3.58225116,3727.1,3727.0,0.001]
[1754346596814,0.4661,3727.1,3727.0,0.001]
[1754346597017,4.129,3727.1,3727.0,0.001]
[1754346597422,7.27815116,3727.1,3727.0,0.001]
[1754346597626,5.0282,3727.1,3727.0,0.001]
[1754346597831,7.71125116,3727.1,3727.0,0.001]
[1754346598588,5.0282,3727.1,3727.0,0.001]
[1754346598818,4.5951,3727.1,3727.0,0.001]
[1754346599195,4.129,3727.1,3727.0,0.001]
[1754346599504,4.129,3727.1,3727.0,2.68412315]
[1754346599786,4.129,3727.1,3727.0,3.22096192]
[1754346599982,4.129,3727.1,3727.0,0.53783877]
[1754346600394,4.129,3727.1,3727.0,3.22096192]
[1754346600581,0.1336,3727.2,3727.0,3.22096192]
[1754346600582,0.1336,3727.2,3727.1,2.68305116]
[1754346600787,3.0,3728.4,3727.1,2.68305116]
[1754346600788,6.9071,3728.5,3727.8,2.68253108]
[1754346601008,0.1336,3728.1,3728.0,2.68240343]
[1754346601398,6.441,3728.5,3728.1,2.68230716]
[1754346601593,0.1336,3728.3,3728.1,2.68230716]
[1754346601808,4.129,3728.2,3728.1,2.68230716]
[1754346602019,6.441,3728.5,3728.0,0.26824034]
[1754346602020,6.441,3728.5,3728.4,2.68211565]
[1754346602220,10.57,3728.5,3728.3,2.68216511]
[1754346602387,10.57,3728.5,3728.1,2.68233148]
[1754346602716,10.57,3728.5,3728.4,2.68211565]
[1754346603322,11.4692,3728.5,3728.0,0.1336]
[1754346603491,11.4692,3728.5,3727.9,2.68242094]
[1754346603492,1.0328,3728.4,3727.9,2.68242094]
[1754346603687,5.0282,3728.3,3728.0,2.68238052]
[1754346603888,0.8992,3728.2,3728.0,2.68238052]
[1754346604203,4.129,3728.1,3728.0,3.23223791]
[1754346604407,0.1336,3728.4,3728.3,2.68218759]
[1754346604611,4.2626,3728.4,3728.3,2.68218759]
[1754346604809,0.1336,3728.4,3728.3,2.68218759]
[1754346605009,6.441,3728.5,3728.0,0.54985739]
[1754346605010,6.441,3728.5,3728.4,2.68211565]
[1754346605221,10.57,3728.5,3728.4,3.21855254]
[1754346606231,10.57,3728.5,3728.4,2.68211565]
[1754346607445,11.0361,3728.5,3728.3,2.6821842]
[1754346607748,10.57,3728.5,3728.3,2.6821842]
[1754346608037,10.57,3728.5,3728.1,2.68233148]
[1754346608215,10.57,3728.5,3728.1,2.96392463]
[1754346608411,11.0361,3728.5,3728.1,2.96392463]
[1754346608625,10.57,3728.5,3728.4,2.68211565]
[1754346608826,6.441,3728.5,3728.4,2.68211565]
[1754346609038,10.569,3728.5,3728.4,2.68211565]
[1754346609546,4.128,3728.5,3728.4,2.68211565]
[1754346610049,0.002,3728.6,3728.5,2.68204371]
[1754346610410,1e-08,3728.8,3728.7,2.68189985]
[1754346610612,1e-08,3728.8,3728.7,5.83548633]
[1754346610811,1e-08,3728.8,3728.7,6.36799985]
[1754346611156,0.002,3730.0,3729.9,2.68103702]
[1754346611354,4.13,3730.0,3729.9,2.94914072]
[1754346612442,5.0292,3730.0,3729.8,0.1336]
[1754346612745,0.8992,3729.9,3729.6,0.1336]
[1754346613125,0.4661,3729.9,3729.8,2.6811089]
[1754346613645,4.13,3730.0,3729.6,2.81483907]
[1754346613841,4.13,3730.0,3729.8,2.68104717]
[1754346614030,0.4661,3729.9,3729.4,2.68138925]
[1754346614222,1.0328,3729.9,3729.7,2.6811798]
[1754346614539,0.8992,3729.8,3729.2,0.1336]
[1754346614716,0.1336,3729.5,3728.9,0.1336]
[1754346614918,0.1336,3729.3,3728.6,0.1336]
[1754346615131,0.1336,3728.9,3728.2,0.1336]
[1754346615307,4.126,3728.8,3728.6,2.68196887]
[1754346615509,0.8992,3728.7,3726.8,2.68319677]
[1754346615715,0.8992,3728.6,3728.2,2.6822555]
[1754346615937,5.0252,3728.5,3728.0,2.81597948]
[1754346616137,0.8992,3728.4,3728.2,2.68219902]
[1754346616341,4.126,3728.5,3728.2,2.68219902]
[1754346616543,0.8992,3728.3,3727.8,2.68247854]
[1754346616720,4.126,3728.2,3727.8,2.81607854]
[1754346616924,4.6065,3728.1,3728.0,2.68234838]
[1754346617564,4.6065,3728.1,3727.9,2.68245528]
[1754346617715,0.4805,3728.0,3727.7,2.68255453]
[1754346617914,0.9264,3727.9,3727.7,2.68255453]
[1754346618108,4.126,3727.8,3727.7,2.68255453]
[1754346618345,4.6065,3727.8,3727.7,2.68255453]
[1754346618553,4.126,3727.8,3727.7,2.68255453]
[1754346619237,4.6065,3727.8,3727.6,0.1336]
[1754346619420,4.6065,3727.8,3727.7,2.6826193]
[1754346620521,4.126,3727.8,3727.7,3.21915215]
[1754346620949,0.1336,3728.2,3728.1,2.68233148]
[1754346621116,0.4805,3728.9,3728.4,2.68206279]
[1754346621316,0.1336,3728.5,3728.4,2.68206279]
[1754346621512,4.2596,3728.5,3728.4,2.68206279]
[1754346621716,4.7401,3728.5,3728.4,2.68206279]
[1754346622756,0.4805,3728.9,3728.8,2.68182793]
[1754346622968,4.6065,3728.9,3728.8,2.68182793]
[1754346623322,5.0524,3728.9,3728.8,2.68182793]
[1754346623728,4.126,3728.9,3728.8,2.68182793]
[1754346624321,0.1336,3728.8,3728.2,0.1336]
[1754346624528,0.9264,3728.7,3728.2,2.68223722]
[1754346624722,0.1336,3728.4,3727.8,0.1336]
[1754346624924,5.0524,3728.3,3727.9,2.68242491]
[1754346625168,0.9264,3728.2,3727.9,2.68242491]
[1754346625372,0.9264,3728.1,3727.9,2.68242491]
[1754346625549,4.126,3728.0,3727.9,2.68242491]
[1754346626446,5.0524,3728.0,3727.9,2.68242491]
[1754346627251,4.6065,3728.0,3727.9,2.68242491]
[1754346627748,4.126,3728.0,3727.9,2.68242491]
[1754346627949,0.6141,3728.4,3728.3,2.68218759]
[1754346628122,4.2596,3728.4,3728.3,2.68218759]
[1754346628323,5.186,3728.4,3728.0,2.68234452]
[1754346628656,0.9264,3728.3,3728.0,2.68234452]
[1754346628842,0.9264,3728.2,3727.9,2.68245082]
[1754346629042,0.9264,3728.2,3727.8,0.1336]
[1754346629043,4.126,3728.1,3727.8,0.1336]
[1754346629242,0.9264,3728.0,3727.8,0.1336]
[1754346629645,4.126,3728.1,3727.7,2.68261848]
[1754346629847,0.9264,3727.9,3727.6,2.68367035]
[1754346630047,4.126,3727.8,3727.6,0.001]
[1754346630224,5.0524,3727.8,3727.6,0.001]
[1754346630428,4.126,3727.8,3727.7,2.6826193]
[1754346630756,4.6065,3727.8,3727.6,0.001]
[1754346631059,4.126,3727.8,3727.6,0.001]
[1754346631560,0.4805,3728.5,3727.9,2.68247538]
[1754346631760,4.126,3728.4,3727.6,0.02099932]
[1754346631959,4.6065,3728.4,3727.6,0.02099932]
[1754346632340,4.6065,3728.4,3728.1,2.68227274]
[1754346632549,4.126,3728.4,3728.2,2.68219817]
[1754346632754,4.6065,3728.4,3728.2,2.68219817]
[1754346632949,0.4805,3728.3,3728.2,2.68219817]
[1754346633260,0.9264,3728.3,3727.6,0.001]
[1754346633448,0.9264,3728.3,3727.9,2.68245127]
[1754346633657,0.9264,3728.2,3727.9,2.68242997]
[1754346633828,4.126,3728.1,3727.9,2.68242997]
[1754346634026,0.9264,3728.0,3727.9,2.68242997]
[1754346634685,0.9264,3728.0,3727.6,0.001]
[1754346634832,0.9264,3727.9,3727.6,0.001]
[1754346635031,4.126,3727.8,3727.7,2.6826193]
[1754346635238,5.0524,3727.8,3727.7,2.6826193]
[1754346635990,0.4805,3728.3,3728.2,2.68225953]
[1754346636142,4.6065,3728.3,3728.2,2.68225953]
[1754346636343,5.0524,3728.3,3728.2,2.68225953]
[1754346638869,4.6065,3728.3,3728.2,2.68225953]
[1754346639898,5.0524,3728.3,3728.2,2.68225953]
[1754346642596,0.4805,3728.8,3728.7,2.68189985]
[1754346642888,5.0524,3728.8,3728.7,2.68189985]
[1754346643045,0.1336,3728.7,3728.0,2.68237664]
[1754346643248,5.0524,3728.6,3728.5,2.68203027]
[1754346643847,4.2596,3728.6,3728.5,2.68203027]
[1754346645890,4.126,3728.6,3728.5,2.68203027]
[1754346646072,4.126,3728.6,3728.5,3.35404495]
[1754346646382,0.1336,3729.1,3728.9,2.68175601]
[1754346646589,5.0574,3729.0,3728.3,2.68218325]
[1754346646786,0.9324,3728.9,3728.0,2.68234742]
[1754346646978,0.4624,3728.9,3728.7,2.68185993]
[1754346647171,0.4624,3728.9,3727.6,4.126]
[1754346647172,0.9324,3728.8,3728.6,2.68192789]
[1754346647363,4.125,3728.7,3728.6,2.68192789]
[1754346647564,5.0574,3728.7,3728.6,2.68192789]
[1754346647747,4.125,3728.7,3728.6,2.68192789]
[1754346648150,4.595,3728.7,3728.6,2.68192789]
[1754346648385,5.0574,3728.7,3727.7,0.53662958]
[1754346648588,0.9324,3728.6,3728.2,2.68220977]
[1754346648786,0.9324,3728.5,3728.2,2.68220977]
[1754346649090,4.125,3728.4,3727.6,0.001]
[1754346649385,5.0574,3728.4,3728.1,2.68230478]
[1754346649573,0.47,3728.3,3728.1,2.68230478]
[1754346649772,0.47,3728.3,3727.7,2.6825527]
[1754346649985,0.4624,3728.2,3728.0,2.68238921]
[1754346650148,5.0574,3728.1,3728.0,2.68238921]
[1754346651902,4.125,3728.1,3728.0,2.68238921]
[1754346652805,4.125,3728.1,3728.0,3.22088201]
[1754346653608,0.002,3729.2,3728.0,0.5384928]
[1754346653790,4.125,3729.1,3728.9,2.68168663]
[1754346654020,0.9324,3729.0,3728.7,2.68188591]
[1754346654159,0.9324,3729.0,3727.8,2.68253811]
[1754346654160,0.9324,3729.0,3728.8,2.68178489]
[1754346654358,0.47,3728.9,3728.8,2.68178489]
[1754346654558,0.9324,3728.9,3728.7,2.68189283]
[1754346654786,4.125,3728.8,3728.7,2.68189283]